[Event "45th National Sub Junior 2019"]
[Site "Tiruchengode"]
[Date "2019.07.13"]
[Round "7.7"]
[White "Arjun Gupta"]
[Black "Ajay Karthikeyan"]
[Result "1-0"]
[ECO "A41"]
[WhiteElo "1851"]
[BlackElo "2216"]
[Annotator "ChessBase"]
[PlyCount "93"]
[EventDate "2019.07.09"]
[EventCountry "IND"]
[SourceTitle "playchess.com"]
[Source "ChessBase"]
[SourceQuality "1"]
[TimeControl "5400+30"]

1. d4 {[%emt 0:00:00]} d6 {[%emt 0:00:00]} 2. Bf4 {[%emt 0:00:00]} g6 {[%emt 0:00:00]} 3. Nf3 {[%emt 0:00:04]} Bg7 {[%emt 0:00:00]} 4. e3 {[%emt 0:00:54]} Nd7 {[%emt 0:00:00]} 5. c3 {[%emt 0:00:32]} e5 {[%emt 0:01:34]} 6. dxe5 {[%emt 0:00:21]} dxe5 {[%emt 0:00:42]} 7. Bg3 {[%emt 0:00:17]} Ne7 {[%emt 0:01:52]} 8. Bc4 {[%emt 0:00:32]} O-O {[%emt 0:00:22]} 9. O-O {[%emt 0:00:11]} Nf5 {[%emt 0:00:17]} 10. Nbd2 {[%emt 0:01:14]} Qe7 {[%emt 0:03:10]} 11. e4 {[%emt 0:01:18]} Nxg3 {[%emt 0:00:27]} 12. hxg3 {[%emt 0:00:20]} Nb6 {[%emt 0:01:26]} 13. Bb3 {[%emt 0:00:08]} Bd7 {[%emt 0:03:32]} 14. Qe2 {[%emt 0:00:22]} a5 {[%emt 0:01:31]} 15. a4 {[%emt 0:00:58]} Bh6 {[%emt 0:07:40]} 16. Nc4 {[%emt 0:01:22]} Nxc4 {[%emt 0:02:16]} 17. Bxc4 {[%emt 0:00:12]} Rfd8 {[%emt 0:12:10]} 18. Rfd1 {[%emt 0:00:59]} Bg4 {[%emt 0:15:02]} 19. Rxd8+ {[%emt 0:04:25]} Rxd8 {[%emt 0:00:02]} 20. Rd1 {[%emt 0:00:28]} Rd6 {[%emt 0:18:47]} 21. Kf1 {[%emt 0:10:25]} Kf8 {[%emt 0:02:30]} 22. Ke1 {[%emt 0:03:11]} f6 {[%emt 0:02:42]} 23. Bb3 {[%emt 0:04:22]} Be6 {[%emt 0:06:09]} 24. Bxe6 {[%emt 0:03:40]} Qxe6 {[%emt 0:00:15]} 25. Rxd6 {[%emt 0:00:14]} Qxd6 {[%emt 0:00:11]} 26. Qb5 {[%emt 0:00:16]} b6 {[%emt 0:00:26]} 27. Ke2 {[%emt 0:01:12]} Bc1 {[%emt 0:02:46]} 28. b4 {[%emt 0:03:39]} axb4 {[%emt 0:03:35]} 29. cxb4 {[%emt 0:00:12]} Ba3 {[%emt 0:02:09]} 30. a5 {[%emt 0:00:24]} bxa5 {[%emt 0:00:07]} 31. bxa5 {[%emt 0:00:20]} Qc5 {[%emt 0:00:43]} 32. Qxc5+ {[%emt 0:09:19]} Bxc5 {[%emt 0:00:01]} 33. g4 {[%emt 0:07:55]} g5 {[%emt 0:02:02]} 34. Nd2 {[%emt 0:00:54]} Ke7 {[%emt 0:01:04]} 35. f3 {[%emt 0:01:45]} Kd7 {[%emt 0:00:51]} 36. Kd3 {[%emt 0:01:22]} Bb4 {[%emt 0:01:58]} 37. Nb3 {[%emt 0:04:41]} Kc6 {[%emt 0:01:28]} 38. Kc4 {[%emt 0:00:05]} Be1 {[%emt 0:00:01]} 39. a6 {[%emt 0:02:40]} Bf2 {[%emt 0:01:25]} 40. Nc1 {[%emt 0:00:08]} Bc5 {[%emt 0:04:56]} 41. Ne2 {[%emt 0:00:43]} Bd6 {[%emt 0:03:27]} 42. Nc3 {[%emt 0:00:30]} Kb6 {[%emt 0:00:05]} 43. Nb5 {[%emt 0:02:50]} Bf8 {[%emt 0:01:12]} 44. a7 {[%emt 0:00:10]} Kb7 {[%emt 0:00:06]} 45. Nxc7 {[%emt 0:00:09]} Kxa7 {[%emt 0:00:01]} 46. Ne8 {[%emt 0:00:13]} Kb7 {[%emt 0:00:21]} 47. Kd5 {[%emt 0:00:08]} 1-0

[Event "45th National Sub Junior 2019"]
[Site "Tiruchengode"]
[Date "2019.07.13"]
[Round "7.8"]
[White "Nikhil Magizhnan"]
[Black "Komal Srivatsav Sajja"]
[Result "1/2-1/2"]
[ECO "B22"]
[WhiteElo "2164"]
[BlackElo "1832"]
[Annotator "ChessBase"]
[PlyCount "142"]
[EventDate "2019.07.09"]
[EventCountry "IND"]
[SourceTitle "playchess.com"]
[Source "ChessBase"]
[SourceQuality "1"]
[TimeControl "5400+30"]

1. e4 {[%emt 0:00:00]} c5 {[%emt 0:00:00]} 2. c3 {[%emt 0:00:00]} Nf6 {[%emt 0:00:00]} 3. e5 {[%emt 0:00:00]} Nd5 {[%emt 0:00:00]} 4. d4 {[%emt 0:00:00]} cxd4 {[%emt 0:00:13]} 5. cxd4 {[%emt 0:00:29]} e6 {[%emt 0:00:07]} 6. Nc3 {[%emt 0:00:23]} d6 {[%emt 0:00:48]} 7. exd6 {[%emt 0:00:30]} Bxd6 {[%emt 0:00:07]} 8. Bd3 {[%emt 0:00:16]} Nf4 {[%emt 0:05:57]} 9. Bxf4 {[%emt 0:05:29]} Bxf4 {[%emt 0:00:04]} 10. Nf3 {[%emt 0:01:32]} O-O {[%emt 0:00:46]} 11. Qe2 {[%emt 0:00:31]} g6 {[%emt 0:05:33]} 12. O-O {[%emt 0:07:03]} Nc6 {[%emt 0:04:20]} 13. Rad1 {[%emt 0:01:48]} Nxd4 {[%emt 0:04:27]} 14. Nxd4 {[%emt 0:00:46]} Qxd4 {[%emt 0:00:02]} 15. g3 {[%emt 0:02:33]} Bc7 {[%emt 0:04:35]} 16. Bxg6 {[%emt 0:01:59]} Qg7 {[%emt 0:01:12]} 17. Bc2 {[%emt 0:22:56]} Be5 {[%emt 0:05:43]} 18. Rd3 {[%emt 0:09:46]} b6 {[%emt 0:08:23]} 19. Re1 {[%emt 0:16:33]} Bf6 {[%emt 0:04:56]} 20. Rf3 {[%emt 0:06:00]} Bb7 {[%emt 0:01:09]} 21. Rf4 {[%emt 0:01:22]} Kh8 {[%emt 0:00:59]} 22. Ne4 {[%emt 0:04:43]} Bxe4 {[%emt 0:00:58]} 23. Bxe4 {[%emt 0:01:05]} Rac8 {[%emt 0:00:18]} 24. Qh5 {[%emt 0:00:47]} Rc5 {[%emt 0:00:40]} 25. Qe2 {[%emt 0:01:14]} Bg5 {[%emt 0:01:41]} 26. Rf3 {[%emt 0:00:09]} Re5 {[%emt 0:00:22]} 27. Qf1 {[%emt 0:01:41]} f5 {[%emt 0:01:25]} 28. Bd3 {[%emt 0:00:57]} Rc8 {[%emt 0:00:39]} 29. Kg2 {[%emt 0:00:43]} Qf6 {[%emt 0:02:19]} 30. h4 {[%emt 0:02:53]} Bh6 {[%emt 0:03:00]} 31. Ba6 {[%emt 0:01:26]} Rg8 {[%emt 0:02:55]} 32. Rxe5 {[%emt 0:02:08]} Qxe5 {[%emt 0:00:17]} 33. Rc3 {[%emt 0:03:09]} Qe4+ {[%emt 0:02:27]} 34. Kh2 {[%emt 0:02:17]} f4 {[%emt 0:00:34]} 35. Bd3 {[%emt 0:02:09]} Qf3 {[%emt 0:01:32]} 36. Qg2 {[%emt 0:00:40]} fxg3+ {[%emt 0:03:12]} 37. fxg3 {[%emt 0:00:03]} Qxg2+ {[%emt 0:06:42]} 38. Kxg2 {[%emt 0:00:04]} Bf4 {[%emt 0:00:04]} 39. Bc4 {[%emt 0:01:06]} Be5 {[%emt 0:00:39]} 40. Ra3 {[%emt 0:01:12]} a5 {[%emt 0:01:56]} 41. Re3 {[%emt 0:01:03]} Bxb2 {[%emt 0:00:14]} 42. Rxe6 {[%emt 0:00:07]} Rc8 {[%emt 0:00:23]} 43. Bd3 {[%emt 0:00:43]} Bd4 {[%emt 0:02:32]} 44. Re7 {[%emt 0:00:54]} Bg7 {[%emt 0:00:15]} 45. Rb7 {[%emt 0:00:28]} Rd8 {[%emt 0:02:03]} 46. Be4 {[%emt 0:00:12]} Re8 {[%emt 0:00:27]} 47. Kf3 {[%emt 0:00:16]} Rf8+ {[%emt 0:00:24]} 48. Kg2 {[%emt 0:00:27]} Rf6 {[%emt 0:02:15]} 49. g4 {[%emt 0:00:24]} h6 {[%emt 0:01:31]} 50. h5 {[%emt 0:01:29]} Bf8 {[%emt 0:01:02]} 51. Bg6 {[%emt 0:00:25]} Kg8 {[%emt 0:01:18]} 52. Bh7+ {[%emt 0:00:10]} Kh8 {[%emt 0:00:06]} 53. Bg6 {[%emt 0:00:05]} Kg8 {[%emt 0:00:04]} 54. Bh7+ {[%emt 0:00:12]} Kh8 {[%emt 0:00:05]} 55. Bf5 {[%emt 0:00:02]} Kg8 {[%emt 0:01:48]} 56. Kf3 {[%emt 0:00:20]} Kh8 {[%emt 0:00:11]} 57. Ke4 {[%emt 0:00:05]} Kg8 {[%emt 0:00:04]} 58. Ke5 {[%emt 0:00:51]} Bg7 {[%emt 0:00:14]} 59. Kd5 {[%emt 0:00:16]} Bf8 {[%emt 0:00:19]} 60. Kc4 {[%emt 0:00:16]} Kh8 {[%emt 0:00:21]} 61. Kb5 {[%emt 0:00:33]} Kg8 {[%emt 0:00:19]} 62. a4 {[%emt 0:00:35]} Kh8 {[%emt 0:00:34]} 63. Rc7 {[%emt 0:01:10]} Kg8 {[%emt 0:00:31]} 64. Bd7 {[%emt 0:01:13]} Kh8 {[%emt 0:01:23]} 65. Bf5 {[%emt 0:00:38]} Kg8 {[%emt 0:00:07]} 66. Ka6 {[%emt 0:00:14]} Kh8 {[%emt 0:01:17]} 67. Kb7 {[%emt 0:01:21]} Kg8 {[%emt 0:00:41]} 68. Kc8 {[%emt 0:00:09]} Bc5 {[%emt 0:01:21]} 69. Kb7 {[%emt 0:00:54]} Bf8 {[%emt 0:00:15]} 70. Ka8 {[%emt 0:00:32]} Kh8 {[%emt 0:00:13]} 71. Kb7 {[%emt 0:01:04]} Kg8 {[%emt 0:00:17]} 1/2-1/2

[Event "45th National Sub Junior 2019"]
[Site "Tiruchengode"]
[Date "2019.07.13"]
[Round "7.9"]
[White "Srikrishnan P"]
[Black "Gugan G"]
[Result "1-0"]
[ECO "E10"]
[WhiteElo "1990"]
[BlackElo "1824"]
[Annotator "NA"]
[PlyCount "83"]
[EventDate "2019.07.09"]
[EventCountry "IND"]
[SourceTitle "playchess.com"]
[Source "ChessBase"]
[SourceQuality "1"]
[TimeControl "5400+30"]

1. d4 {[%emt 0:00:00]} Nf6 {[%emt 0:00:57]} 2. c4 {[%emt 0:00:00]} e6 {[%emt 0:00:09]} 3. Nf3 {[%emt 0:00:00]} c5 {[%emt 0:00:46]} 4. d5 {[%emt 0:00:00]} b5 {[%emt 0:00:35]} 5. Bg5 {[%emt 0:01:16]} b4 {[%emt 0:03:53]} 6. e4 {[%emt 0:00:49] E10: Blumenfeld Gambit} d6 {[%emt 0:00:12]} 7. Bd3 {[%emt 0:08:27]} e5 {[%emt 0:06:10]} (7... Be7 8. a3 O-O 9. axb4 cxb4 10. O-O a5 11. dxe6 Bxe6 12. Nd4 Qc8 13. Nd2 h6 {½-½ (25) Mareco,S (2644)-Delgado Ramirez,N (2611) Ponta Grossa 2017}) 8. O-O {[%emt 0:00:11]} h6 $146 {[%emt 0:07:19]} ({Predecessor:} 8... Be7 9. Bxf6 Bxf6 10. a3 Nd7 11. Qa4 a5 12. Nbd2 O-O 13. Qc2 Be7 {0-1 (30) Szabolcsi,J (2418)-Toth,E (2477) Budapest 2012}) 9. Be3 {[%emt 0:03:23]} Be7 {[%emt 0:04:19]} 10. a3 {[%emt 0:01:08]} bxa3 {[%emt 0:01:28]} 11. Rxa3 {[%emt 0:02:09]} O-O {[%emt 0:01:30]} 12. Nc3 {[%emt 0:02:19]} Na6 {[%emt 0:06:46]} 13. Ne1 {[%emt 0:06:56]} Nb4 {[%emt 0:11:17]} 14. Be2 {[%emt 0:00:37]} Re8 {[%emt 0:12:54]} 15. Nc2 {[%emt 0:11:38]} Bf8 {[%emt 0:03:14]} 16. f3 {[%emt 0:03:03]} Bd7 {[%emt 0:08:39]} 17. Qd2 {[%emt 0:01:29]} Qc7 {[%emt 0:03:32]} 18. Rfa1 {[%emt 0:05:09]} Nh5 $2 {[%emt 0:09:52]} (18... a6 $16 {was necessary.}) 19. Nb5 {[%emt 0:02:51]} (19. Nxb4 $142 cxb4 20. Nb5 {[%mdl 64] Double Attack}) 19... Bxb5 {[%emt 0:03:15]} 20. cxb5 {[%emt 0:02:55]} Nxc2 {[%emt 0:02:02]} 21. Qxc2 {[%emt 0:00:02]} Nf4 $18 {[%emt 0:05:54]} (21... Nf6 $142 22. Ra6 Reb8) 22. Bf1 {[%emt 0:00:05]} Nh5 {[%emt 0:02:47]} 23. Ra6 {[%emt 0:00:05]} Reb8 {[%emt 0:00:52]} 24. b4 {[%emt 0:01:33]} Rb6 {[%emt 0:01:44]} 25. bxc5 {[%emt 0:00:31]} dxc5 {[%emt 0:00:08]} 26. Rxb6 {[%emt 0:00:20]} Qxb6 {[%emt 0:00:06]} 27. Ra6 {[%emt 0:00:03]} Qc7 {[%emt 0:02:36]} 28. Rc6 {[%emt 0:00:05]} Qb7 {[%emt 0:00:07]} 29. Bxc5 {[%emt 0:00:05]} Bxc5+ {[%emt 0:00:08]} 30. Qxc5 {[%emt 0:00:04]} Nf6 {[%emt 0:00:12]} 31. Rc7 {[%emt 0:00:34]} Nd7 {[%emt 0:00:37]} 32. Rxb7 {[%emt 0:01:16]} Nxc5 {[%emt 0:00:06]} 33. Rc7 {[%emt 0:00:03]} Na4 {[%emt 0:00:31]} 34. Kf2 {[%emt 0:01:15]} Kf8 {[%emt 0:00:17]} 35. Ke3 {[%emt 0:00:18]} Ke8 {[%emt 0:00:08]} 36. Kd3 {[%emt 0:00:15]} a6 {[%emt 0:00:40]} 37. Kc2 {[%emt 0:01:00]} axb5 {[%emt 0:00:45]} 38. Bxb5+ {[%emt 0:00:06]} Kf8 {[%emt 0:00:10]} 39. Bc6 {[%emt 0:01:25]} Ra5 {[%emt 0:00:33]} 40. Kb3 {[%emt 0:00:52]} Nb6 {[%emt 0:00:25]} 41. Rb7 {[%emt 0:00:11]} Nxd5 {[%emt 0:01:52]} 42. Bxd5 {[%emt 0:00:07]} 1-0

[Event "45th National Sub Junior 2019"]
[Site "Tiruchengode"]
[Date "2019.07.13"]
[Round "7.10"]
[White "Ayushh Ravikumar"]
[Black "Ayyappan P Santhana Prabu"]
[Result "1-0"]
[ECO "D43"]
[WhiteElo "1946"]
[BlackElo "1798"]
[Annotator "NA"]
[PlyCount "113"]
[EventDate "2019.07.09"]
[EventCountry "IND"]
[SourceTitle "playchess.com"]
[Source "ChessBase"]
[SourceQuality "1"]
[TimeControl "5400+30"]

1. d4 {[%emt 0:01:37]} d5 {[%emt 0:00:22]} 2. c4 {[%emt 0:00:25]} c6 {[%emt 0:00:25]} 3. Nc3 {[%emt 0:00:26]} e6 {[%emt 0:00:30]} 4. Nf3 {[%emt 0:00:51]} Nf6 {[%emt 0:00:55]} 5. Bg5 {[%emt 0:01:09]} h6 {[%emt 0:01:11]} 6. Bxf6 {[%emt 0:01:13]} Qxf6 {[%emt 0:01:04]} 7. e3 {[%emt 0:00:01]} g6 {[%emt 0:03:09]} 8. Qc2 {[%emt 0:01:20] D43: Semi-Slav: 5 Bg5 h6} (8. Be2 Bg7 9. O-O O-O 10. Rc1 Nd7 11. cxd5 exd5 12. b4 a6 13. a4 Qd6 14. b5 axb5 15. axb5 Nb6 {½-½ (45) Wojtaszek,R (2749)-Vitiugov,N (2709) Shenzhen 2018}) 8... Bg7 {[%emt 0:00:39]} 9. cxd5 {[%emt 0:01:09]} O-O {[%emt 0:11:10]} 10. dxe6 {[%emt 0:04:34]} Bxe6 {[%emt 0:00:10]} 11. Bd3 {[%emt 0:02:58]} Nd7 {[%emt 0:01:22]} 12. O-O {[%emt 0:01:37]} Rfe8 {[%emt 0:01:40]} 13. Nd2 $146 {[%emt 0:06:55]} ({Predecessor:} 13. a3 Qe7 14. Rfe1 Rad8 15. b4 a6 {1-0 (28) Solomon,K (2383)-Hagen,A (2085) Tromsoe 2010}) 13... Qe7 {[%emt 0:02:15]} 14. Bc4 {[%emt 0:06:50]} Bxc4 {[%emt 0:06:46]} 15. Nxc4 {[%emt 0:00:15]} Nf6 {[%emt 0:00:39]} 16. Rfd1 {[%emt 0:05:30]} Rad8 {[%emt 0:02:22]} 17. Rac1 {[%emt 0:02:55]} Kh7 {[%emt 0:03:48]} 18. Qb3 {[%emt 0:04:59]} Nd5 {[%emt 0:09:08]} 19. g3 {[%emt 0:16:30]} h5 {[%emt 0:02:46]} 20. Nxd5 {[%emt 0:08:06]} Rxd5 {[%emt 0:00:52]} 21. Qa3 {[%emt 0:00:45]} Qxa3 {[%emt 0:06:43]} 22. Nxa3 {[%emt 0:01:57]} Red8 {[%emt 0:00:09]} 23. Nb1 {[%emt 0:02:50]} Ra5 {[%emt 0:08:12]} 24. Nc3 {[%emt 0:07:06]} c5 {[%emt 0:05:09]} 25. dxc5 {[%emt 0:01:01]} Rxd1+ {[%emt 0:00:16]} 26. Rxd1 {[%emt 0:00:18]} Rxc5 {[%emt 0:03:21]} 27. Rd7 {[%emt 0:01:39]} b5 {[%emt 0:02:35]} 28. Rxf7 {[%emt 0:03:09]} b4 {[%emt 0:00:04]} 29. Na4 {[%emt 0:02:50]} Rc1+ {[%emt 0:00:10]} 30. Kg2 {[%emt 0:00:05]} Ra1 {[%emt 0:00:05]} 31. a3 {[%emt 0:01:29]} a5 {[%emt 0:03:37]} 32. Ra7 {[%emt 0:00:30]} bxa3 {[%emt 0:00:05]} 33. bxa3 {[%emt 0:00:03]} Rxa3 {[%emt 0:00:11]} 34. Rxa5 {[%emt 0:00:09]} Kh6 {[%emt 0:00:07]} 35. Ra8 {[%emt 0:01:59]} Ra2 {[%emt 0:00:38]} 36. Nb6 {[%emt 0:00:15]} Rb2 {[%emt 0:00:06]} 37. Nd5 {[%emt 0:00:39]} Rc2 {[%emt 0:00:48]} 38. Ra6 {[%emt 0:00:18]} Kh7 {[%emt 0:00:18]} 39. Nf6+ {[%emt 0:02:40]} Kh6 {[%emt 0:00:25]} 40. Re6 {[%emt 0:01:38]} Ra2 {[%emt 0:01:14]} 41. h4 {[%emt 0:01:29]} Rb2 {[%emt 0:00:21]} (41... Ra5 {was necessary.} 42. e4 Bxf6) 42. Nd7 {[%emt 0:03:31]} Bc3 {[%emt 0:02:55]} 43. Ne5 {[%emt 0:00:48]} Kh7 {[%emt 0:00:11]} 44. Nf3 {[%emt 0:02:53]} Ra2 {[%emt 0:01:03]} 45. Rc6 {[%emt 0:00:24]} Ba1 {[%emt 0:00:36]} 46. Rd6 {[%emt 0:01:59]} Bc3 {[%emt 0:00:10]} 47. Rc6 $2 {[%emt 0:00:58]} (47. Rd3 $18 Bf6 48. Rd7+ Kg8 49. Nd2) 47... Ba1 $1 {[%emt 0:00:07]} 48. Ne1 {[%emt 0:00:04]} Be5 {[%emt 0:00:18]} 49. Rc2 {[%emt 0:00:05]} Ra6 {[%emt 0:00:15]} 50. f4 {[%emt 0:00:12]} Bf6 {[%emt 0:00:04]} 51. Nf3 {[%emt 0:00:35]} Kg7 {[%emt 0:00:04]} 52. e4 $18 {[%emt 0:00:40]} Kf7 {[%emt 0:00:07]} 53. Rc7+ {[%emt 0:01:31]} Ke6 {[%emt 0:00:12]} 54. e5 {[%emt 0:00:36]} Bd8 {[%emt 0:00:35]} 55. Nd4+ {[%emt 0:00:08]} Kd5 {[%emt 0:00:08]} 56. Rd7+ {[%emt 0:00:04]} Kc4 {[%emt 0:00:22]} 57. Rxd8 {[%emt 0:00:05]} 1-0

[Event "45th National Sub Junior 2019"]
[Site "Tiruchengode"]
[Date "2019.07.14"]
[Round "8.1"]
[White "Raja Rithvik R"]
[Black "Sanket Chakravarty"]
[Result "1-0"]
[ECO "E73"]
[WhiteElo "2357"]
[BlackElo "2107"]
[Annotator "ChessBase"]
[PlyCount "61"]
[EventDate "2019.07.09"]
[EventCountry "IND"]
[SourceTitle "playchess.com"]
[Source "ChessBase"]
[SourceQuality "1"]
[TimeControl "5400+30"]

1. d4 {[%emt 0:00:00]} Nf6 {[%emt 0:00:00]} 2. c4 {[%emt 0:00:00]} g6 {[%emt 0:00:00]} 3. Nc3 {[%emt 0:00:00]} Bg7 {[%emt 0:00:00]} 4. e4 {[%emt 0:00:02]} d6 {[%emt 0:00:04]} 5. Be2 {[%emt 0:00:05]} O-O {[%emt 0:00:25]} 6. Be3 {[%emt 0:00:04]} e5 {[%emt 0:00:55]} 7. d5 {[%emt 0:00:04]} a5 {[%emt 0:04:37]} 8. g4 {[%emt 0:00:11]} Na6 {[%emt 0:01:43]} 9. h4 {[%emt 0:00:05]} Nc5 {[%emt 0:01:20]} 10. f3 {[%emt 0:00:05]} h5 {[%emt 0:09:41]} 11. g5 {[%emt 0:00:18]} Ne8 {[%emt 0:01:51]} 12. Qd2 {[%emt 0:00:05]} Bd7 {[%emt 0:02:03]} 13. O-O-O {[%emt 0:00:08]} Qc8 {[%emt 0:07:23]} 14. Kb1 {[%emt 0:00:52]} a4 {[%emt 0:03:09]} 15. Bf1 {[%emt 0:01:43]} b6 {[%emt 0:09:01]} 16. Bh3 {[%emt 0:02:07]} Kh8 {[%emt 0:08:35]} 17. Bxd7 {[%emt 0:03:46]} Nxd7 {[%emt 0:05:10]} 18. Nge2 {[%emt 0:09:27]} Nc5 {[%emt 0:05:19]} 19. Nc1 {[%emt 0:09:39]} Ra5 {[%emt 0:06:57]} 20. Nd3 {[%emt 0:05:21]} Nxd3 {[%emt 0:08:03]} 21. Qxd3 {[%emt 0:00:39]} Kg8 {[%emt 0:00:03]} 22. Nb5 {[%emt 0:03:22]} Bh8 {[%emt 0:01:57]} 23. Bd2 {[%emt 0:04:25]} Ra8 {[%emt 0:00:16]} 24. Rdf1 {[%emt 0:03:50]} c6 {[%emt 0:08:14]} 25. dxc6 {[%emt 0:00:48]} Qxc6 {[%emt 0:00:02]} 26. Bb4 {[%emt 0:00:40]} Ng7 {[%emt 0:02:42]} 27. Qd5 {[%emt 0:05:30]} Qc8 {[%emt 0:01:30]} 28. Nxd6 {[%emt 0:03:57]} Qa6 {[%emt 0:00:22]} 29. f4 {[%emt 0:03:38]} exf4 {[%emt 0:01:12]} 30. Rxf4 {[%emt 0:00:12]} Ne6 {[%emt 0:00:46]} 31. Rxf7 {[%emt 0:00:19]} 1-0

[Event "45th National Sub Junior 2019"]
[Site "Tiruchengode"]
[Date "2019.07.14"]
[Round "8.2"]
[White "Rohith Krishna S"]
[Black "Pranav, V."]
[Result "1/2-1/2"]
[ECO "A46"]
[WhiteElo "2312"]
[BlackElo "2312"]
[Annotator "ChessBase"]
[PlyCount "86"]
[EventDate "2019.07.09"]
[EventCountry "IND"]
[SourceTitle "playchess.com"]
[Source "ChessBase"]
[SourceQuality "1"]
[TimeControl "5400+30"]

1. Nf3 {[%emt 0:02:02]} Nf6 {[%emt 0:00:00]} 2. g3 {[%emt 0:00:10]} d5 {[%emt 0:00:00]} 3. d4 {[%emt 0:00:08]} b5 {[%emt 0:00:19]} 4. Bg2 {[%emt 0:00:09]} e6 {[%emt 0:00:31]} 5. O-O {[%emt 0:00:08]} a5 {[%emt 0:01:40]} 6. a4 {[%emt 0:03:57]} b4 {[%emt 0:00:08]} 7. Bf4 {[%emt 0:04:24]} Bd6 {[%emt 0:01:56]} 8. Bxd6 {[%emt 0:01:17]} cxd6 {[%emt 0:00:08]} 9. c3 {[%emt 0:01:25]} O-O {[%emt 0:03:35]} 10. Nbd2 {[%emt 0:05:22]} Ba6 {[%emt 0:02:27]} 11. Re1 {[%emt 0:01:06]} bxc3 {[%emt 0:02:26]} 12. bxc3 {[%emt 0:00:06]} Nbd7 {[%emt 0:00:06]} 13. Qb3 {[%emt 0:04:20]} Qc7 {[%emt 0:00:46]} 14. e3 {[%emt 0:03:13]} Bd3 {[%emt 0:09:41]} 15. Bf1 {[%emt 0:02:16]} Rab8 {[%emt 0:02:04]} 16. Qa3 {[%emt 0:00:07]} Bxf1 {[%emt 0:00:35]} 17. Rxf1 {[%emt 0:00:06]} Nb6 {[%emt 0:03:12]} 18. Rab1 {[%emt 0:03:05]} Qc6 {[%emt 0:00:39]} 19. Rb5 {[%emt 0:03:51]} Nxa4 {[%emt 0:01:30]} 20. Rxa5 {[%emt 0:00:08]} Ra8 {[%emt 0:00:45]} 21. Rxa8 {[%emt 0:00:23]} Rxa8 {[%emt 0:00:07]} 22. Ra1 {[%emt 0:00:44]} Nd7 {[%emt 0:01:46]} 23. Qb4 {[%emt 0:01:33]} Ndb6 {[%emt 0:02:34]} 24. Ra3 {[%emt 0:01:59]} h6 {[%emt 0:06:13]} 25. Kg2 {[%emt 0:01:06]} Re8 {[%emt 0:03:41]} 26. c4 {[%emt 0:06:14]} dxc4 {[%emt 0:10:54]} 27. Nxc4 {[%emt 0:00:54]} Nxc4 {[%emt 0:00:12]} 28. Qxa4 {[%emt 0:00:23]} Qxa4 {[%emt 0:00:10]} 29. Rxa4 {[%emt 0:00:06]} d5 {[%emt 0:00:07]} 30. Ra2 {[%emt 0:00:15]} Rb8 {[%emt 0:00:09]} 31. Nd2 {[%emt 0:00:06]} Nd6 {[%emt 0:00:28]} 32. h4 {[%emt 0:00:33]} Nf5 {[%emt 0:00:43]} 33. Nf3 {[%emt 0:00:44]} Nd6 {[%emt 0:00:47]} 34. Nd2 {[%emt 0:00:29]} h5 {[%emt 0:00:44]} 35. Nf3 {[%emt 0:00:51]} f6 {[%emt 0:00:56]} 36. Ne1 {[%emt 0:00:13]} Rb3 {[%emt 0:01:58]} 37. Nf3 {[%emt 0:04:03]} Nf5 {[%emt 0:00:51]} 38. Ra6 {[%emt 0:02:06]} Rb2 {[%emt 0:00:23]} 39. Kg1 {[%emt 0:00:05]} Kf7 {[%emt 0:02:50]} 40. Ra7+ {[%emt 0:00:38]} Kg6 {[%emt 0:00:13]} 41. Ra6 {[%emt 0:00:42]} Kf7 {[%emt 0:00:26]} 42. Ra7+ {[%emt 0:00:05]} Kf8 {[%emt 0:00:22]} 43. Ra6 {[%emt 0:00:06]} Kf7 {[%emt 0:00:38]} 1/2-1/2

[Event "45th National Sub Junior 2019"]
[Site "Tiruchengode"]
[Date "2019.07.14"]
[Round "8.3"]
[White "Samant Aditya S"]
[Black "Aaryan Varshney"]
[Result "1-0"]
[ECO "B90"]
[WhiteElo "2296"]
[BlackElo "2284"]
[Annotator "ChessBase"]
[PlyCount "93"]
[EventDate "2019.07.09"]
[EventCountry "IND"]
[SourceTitle "playchess.com"]
[Source "ChessBase"]
[SourceQuality "1"]
[TimeControl "5400+30"]

1. e4 {[%emt 0:00:00]} c5 {[%emt 0:00:00]} 2. Nf3 {[%emt 0:00:00]} d6 {[%emt 0:00:00]} 3. d4 {[%emt 0:00:00]} cxd4 {[%emt 0:00:00]} 4. Nxd4 {[%emt 0:00:00]} Nf6 {[%emt 0:00:00]} 5. Nc3 {[%emt 0:00:00]} a6 {[%emt 0:00:00]} 6. h3 {[%emt 0:00:05]} e5 {[%emt 0:00:00]} 7. Nde2 {[%emt 0:00:11]} h5 {[%emt 0:00:00]} 8. Bg5 {[%emt 0:00:04]} Be6 {[%emt 0:00:01]} 9. Bxf6 {[%emt 0:00:07]} Qxf6 {[%emt 0:00:04]} 10. Nd5 {[%emt 0:00:05]} Qd8 {[%emt 0:00:07]} 11. Qd3 {[%emt 0:00:08]} Nd7 {[%emt 0:00:06]} 12. O-O-O {[%emt 0:00:53]} g6 {[%emt 0:00:14]} 13. Kb1 {[%emt 0:00:37]} Nc5 {[%emt 0:00:17]} 14. Qf3 {[%emt 0:01:08]} Bg7 {[%emt 0:00:09]} 15. Nec3 {[%emt 0:02:16]} b5 {[%emt 0:00:14]} 16. Ne3 {[%emt 0:03:40]} O-O {[%emt 0:00:09]} 17. Ncd5 {[%emt 0:01:07]} Rc8 {[%emt 0:06:07]} 18. h4 {[%emt 0:15:42]} Na4 {[%emt 0:05:46]} 19. g3 {[%emt 0:07:50]} Nb6 {[%emt 0:03:01]} 20. Nxb6 {[%emt 0:15:50]} Qxb6 {[%emt 0:00:23]} 21. Bh3 {[%emt 0:00:38]} Qc5 {[%emt 0:31:01]} 22. g4 {[%emt 0:11:25]} Bh6 {[%emt 0:08:42]} 23. g5 {[%emt 0:03:12]} Bg7 {[%emt 0:00:02]} 24. Rd2 {[%emt 0:03:26]} Qb4 {[%emt 0:04:22]} 25. Rd3 {[%emt 0:05:19]} Rc6 {[%emt 0:03:37]} 26. Nd5 {[%emt 0:05:48]} Bxd5 {[%emt 0:00:46]} 27. Rxd5 {[%emt 0:00:07]} Rd8 {[%emt 0:10:54]} 28. Rhd1 {[%emt 0:02:47]} Qa4 {[%emt 0:00:24]} 29. Qd3 {[%emt 0:01:44]} Qc4 {[%emt 0:02:16]} 30. Qxc4 {[%emt 0:02:06]} Rxc4 {[%emt 0:00:34]} 31. f3 {[%emt 0:00:13]} Rc6 {[%emt 0:00:16]} 32. a4 {[%emt 0:05:41]} bxa4 {[%emt 0:01:16]} 33. Ra5 {[%emt 0:00:06]} Kf8 {[%emt 0:01:26]} 34. Rxa4 {[%emt 0:00:08]} Rb8 {[%emt 0:01:39]} 35. Bf1 {[%emt 0:01:46]} Rbb6 {[%emt 0:01:40]} 36. Rd5 {[%emt 0:02:08]} f6 {[%emt 0:00:21]} 37. Rda5 {[%emt 0:00:47]} fxg5 {[%emt 0:00:10]} 38. hxg5 {[%emt 0:00:02]} Rc3 {[%emt 0:01:34]} 39. Bxa6 {[%emt 0:03:46]} Kg8 {[%emt 0:02:46]} 40. Bc4+ {[%emt 0:03:58]} Kh7 {[%emt 0:00:12]} 41. Ra8 {[%emt 0:00:58]} Rxf3 {[%emt 0:01:31]} 42. R4a7 {[%emt 0:01:01]} d5 {[%emt 0:02:53]} 43. Bxd5 {[%emt 0:00:09]} Rf1+ {[%emt 0:02:44]} 44. Ka2 {[%emt 0:00:09]} Rg1 {[%emt 0:03:10]} 45. Rg8 {[%emt 0:00:43]} Rxg5 {[%emt 0:00:06]} 46. Rgxg7+ {[%emt 0:00:05]} Kh6 {[%emt 0:00:05]} 47. Rh7# {[%emt 0:00:04]} 1-0